fUST/lending_fUST_20250624
["ID","MTS","AMOUNT","RATE_DAILY","PERIOD"]
[367330269,1750752660614,-500.48505275,0.00021121,2]
[367330270,1750752660623,-1000.0,0.00021121,2]
[367330271,1750752660633,-1000.0,0.00021121,2]
[367330272,1750752660642,-1000.0,0.00021121,2]
[367330273,1750752660652,-1000.0,0.00021121,2]
[367330274,1750752660661,-1000.0,0.00021121,2]
[367330275,1750752660670,-1031.54010607,0.00021121,2]
[367330276,1750752660770,-1000.0,0.00021121,2]
[367330277,1750752660782,-1000.0,0.00021121,2]
[367330278,1750752660792,-1000.0,0.00021121,2]
[367330279,1750752660803,-1200.0,0.00021121,2]
[367330280,1750752660813,-393.16154792,0.00021154,2]
[367330281,1750752660822,-187.5849628,0.00021157,5]
[367330282,1750752660833,-1500.0,0.00021165,2]
[367330283,1750752660842,-1500.0,0.00021165,2]
[367330284,1750752660851,-8596.68652395,0.00021182,2]
[367330285,1750752660861,-166.0,0.00021226,2]
[367330286,1750752660870,-1749.0,0.00021226,2]
[367330287,1750752660880,-1749.0,0.00021226,2]
[367330288,1750752660890,-1749.0,0.00021226,2]
[367330289,1750752660900,-1749.0,0.00021226,2]
[367330290,1750752660910,-166.0,0.00021226,2]
[367330291,1750752660919,-1749.0,0.00021226,2]
[367330292,1750752660929,-166.0,0.00021226,2]
[367330293,1750752660938,-620.14695614,0.00021226,2]
[367330294,1750752660948,-166.0,0.00021226,2]
[367330295,1750752660957,-1749.0,0.00021226,2]
[367330296,1750752660966,-166.0,0.00021226,2]
[367330297,1750752660975,-166.0,0.00021226,2]
[367330298,1750752660985,-166.0,0.00021226,2]
[367330299,1750752660994,-166.0,0.00021226,2]
[367330300,1750752661003,-172.0,0.00021226,2]
[367330301,1750752661012,-4000.0,0.0002125,4]
[367330302,1750752661021,-500.0,0.0002126,2]
[367330303,1750752661031,-418.0,0.00021267,2]
[367330304,1750752661040,-3157.93331803,0.00021279,5]
[367330305,1750752661049,-418.0,0.00021292,2]
[367330306,1750752661058,-647.2,0.00021323,4]
[367330307,1750752661067,-418.0,0.00021336,2]
[367330308,1750752661076,-418.0,0.00021342,2]
[367330309,1750752661087,-2418.00460181,0.00021364,2]
[367330310,1750752661096,-2500.0,0.00021364,2]
[367330311,1750752661105,-480.45,0.00021369,2]
[367330312,1750752661115,-757.17,0.00021369,17]
[367330313,1750752661125,-460.0,0.00021369,2]
[367330314,1750752661134,-460.0,0.00021369,2]
[367330315,1750752661144,-673.94,0.00021369,2]
[367330316,1750752661164,-1047.12,0.00021369,2]
[367330317,1750752661180,-487.01,0.00021369,2]
[367330318,1750752661189,-460.0,0.00021369,2]
[367330319,1750752661198,-615.97,0.00021369,2]
[367330320,1750752661208,-492.32,0.00021369,2]
[367330321,1750752661217,-460.0,0.00021369,2]
[367330322,1750752661226,-151.0,0.00021369,2]
[367330323,1750752661236,-153.855787,0.00021369,2]
[367330324,1750752661245,-208.830051,0.00021369,2]
[367330325,1750752661254,-208.830051,0.00021369,2]
[367330326,1750752661263,-460.0,0.00021369,2]
[367330327,1750752661273,-460.0,0.00021369,2]
[367330328,1750752661283,-151.0,0.00021369,2]
[367330329,1750752661292,-714.5,0.00021369,2]
[367330330,1750752661301,-151.0,0.00021369,2]
[367330331,1750752661310,-151.0,0.00021369,2]
[367330332,1750752661319,-151.0,0.00021369,2]
[367330333,1750752661329,-460.0,0.00021369,2]
[367330334,1750752661338,-460.0,0.00021369,2]
[367330335,1750752661347,-523.43,0.00021369,2]
[367330336,1750752661357,-460.0,0.00021369,2]
[367330337,1750752661366,-315.71,0.00021369,2]
[367330338,1750752661376,-503.09,0.00021369,2]
[367330339,1750752661385,-460.0,0.00021369,2]
[367330340,1750752661395,-206.08478,0.00021369,2]
[367330341,1750752661405,-420.49302246,0.00021369,2]
[367330342,1750752661414,-460.0,0.00021369,2]
[367330343,1750752661424,-151.0,0.00021369,2]
[367330344,1750752661434,-460.0,0.00021369,2]
[367330345,1750752661443,-330.49396216,0.00021369,2]
[367330346,1750752661453,-460.0,0.00021369,2]
[367330347,1750752661463,-1026.56,0.00021369,2]
[367330348,1750752661473,-165.39674788,0.00021369,2]
[367330349,1750752661482,-821.9,0.00021369,2]
[367330350,1750752661492,-460.0,0.00021369,2]
[367330351,1750752661502,-299.146207,0.00021369,2]
[367330352,1750752661511,-460.0,0.00021369,2]
[367330353,1750752661521,-896.28,0.00021369,2]
[367330354,1750752661530,-299.146207,0.00021369,2]
[367330355,1750752661540,-1097.0,0.00021369,2]
[367330356,1750752661550,-896.27,0.00021369,2]
[367330357,1750752661559,-3446.55,0.00021369,2]
[367330358,1750752661568,-999.41,0.00021369,2]
[367330359,1750752661577,-460.0,0.00021369,2]
[367330360,1750752661587,-460.0,0.00021369,2]
[367330361,1750752661596,-460.0,0.00021369,2]
[367330362,1750752661606,-1312.15,0.00021369,2]
[367330363,1750752661616,-2713.65,0.00021369,2]
[367330364,1750752661625,-183.963104,0.00021369,2]
[367330365,1750752661635,-3355.8,0.00021369,2]
[367330366,1750752661645,-3734.84,0.00021369,2]
[367330367,1750752661654,-1361.0,0.00021369,2]
[367330368,1750752661664,-183.963104,0.00021369,2]
[367330369,1750752661673,-1116.13,0.00021369,2]
[367330370,1750752661682,-1182.98,0.00021369,2]
[367330371,1750752661692,-460.0,0.00021369,2]
[367330372,1750752661701,-937.65,0.00021369,2]
[367330373,1750752661710,-460.0,0.00021369,2]
[367330374,1750752661720,-151.0,0.00021369,2]
[367330375,1750752661730,-460.0,0.00021369,2]
[367330376,1750752661739,-547.64,0.00021369,2]
[367330377,1750752661749,-460.0,0.00021369,2]
[367330378,1750752661758,-460.0,0.00021369,2]
[367330379,1750752661767,-460.0,0.00021369,2]
[367330380,1750752661777,-460.0,0.00021369,2]
[367330381,1750752661787,-151.0,0.00021369,2]
[367330382,1750752661797,-1806.17,0.00021369,2]
[367330383,1750752661807,-3172.77,0.00021369,2]
[367330384,1750752661816,-460.0,0.00021369,2]
[367330385,1750752661826,-4070.75,0.00021369,2]
[367330386,1750752661837,-460.0,0.00021369,2]
[367330387,1750752661848,-1139.13,0.00021369,2]
[367330388,1750752661859,-605.30219476,0.00021369,2]
[367330389,1750752661870,-460.0,0.00021369,2]
[367330390,1750752661880,-460.0,0.00021369,2]
[367330391,1750752661889,-802.34,0.00021369,2]
[367330392,1750752661900,-2208.12,0.00021369,2]
[367330393,1750752661910,-513.68,0.00021369,2]
[367330394,1750752661919,-2572.64,0.00021369,2]
[367330395,1750752661929,-460.0,0.00021369,2]
[367330396,1750752661938,-600.14330737,0.00021369,2]
[367330397,1750752661947,-460.0,0.00021369,2]
[367330398,1750752661956,-593.83,0.00021369,2]
[367330399,1750752661966,-584.89,0.00021369,2]
[367330400,1750752661975,-540.21,0.00021369,2]
[367330401,1750752661985,-4273.48,0.00021369,2]
[367330402,1750752661994,-946.13,0.00021369,2]
[367330403,1750752662004,-460.0,0.00021369,2]
[367330404,1750752662013,-460.0,0.00021369,2]
[367330405,1750752662023,-3042.66,0.00021369,2]
[367330406,1750752662032,-470.14,0.00021369,2]
[367330407,1750752662041,-7145.98,0.00021369,2]
[367330408,1750752662051,-460.0,0.00021369,2]
[367330409,1750752662060,-1474.54,0.00021369,2]
[367330410,1750752662070,-460.0,0.00021369,2]
[367330411,1750752662079,-926.066891,0.00021369,2]
[367330412,1750752662088,-460.0,0.00021369,2]
[367330413,1750752662097,-926.066891,0.00021369,2]
[367330414,1750752662107,-393.04451164,0.00021369,2]
[367330415,1750752662118,-1898.18,0.00021369,2]
[367330416,1750752662127,-460.0,0.00021369,2]
[367330417,1750752662137,-460.0,0.00021369,2]
[367330418,1750752662146,-3559.0,0.00021369,2]
[367330419,1750752662155,-1037.04,0.00021369,2]
[367330420,1750752662164,-3447.67,0.00021369,2]
[367330421,1750752662173,-853.1,0.00021369,2]
[367330422,1750752662183,-460.0,0.00021369,2]
[367330423,1750752662193,-1275.83,0.00021369,2]
[367330424,1750752662202,-325.50850535,0.00021369,2]
[367330425,1750752662212,-460.0,0.00021369,2]
[367330426,1750752662221,-460.0,0.00021369,2]
[367330427,1750752662231,-151.0,0.00021369,2]
[367330428,1750752662240,-1267.62,0.00021369,2]
[367330429,1750752662249,-1171.59,0.00021369,2]
[367330430,1750752662258,-460.0,0.00021369,2]
[367330431,1750752662267,-823.8,0.00021369,2]
[367330432,1750752662277,-427286.15021912,0.000214,2]
[367330433,1750752662286,-151.0,0.000214,4]
[367330434,1750752662295,-151.0,0.000214,2]
[367330435,1750752662304,-2962.933333,0.000214,3]
[367330436,1750752662313,-166.0,0.00021413,2]
[367330437,1750752662322,-166.0,0.00021413,2]
[367330438,1750752662331,-166.0,0.00021413,2]
[367330439,1750752662341,-166.0,0.00021413,2]
[367330440,1750752662350,-204.22414513,0.00021413,2]
[367330441,1750752662359,-166.0,0.00021413,2]
[367330442,1750752662369,-166.0,0.00021413,2]
[367330443,1750752662379,-317.0,0.00021413,2]
[367330444,1750752662388,-317.0,0.00021413,2]
[367330445,1750752662398,-265.69779824,0.00021413,2]
[367330446,1750752662407,-317.0,0.00021413,2]
[367330447,1750752662417,-317.0,0.00021413,2]
[367330448,1750752662511,-2000.0,0.00021416,2]
[367330449,1750752662521,-2015.98530857,0.00021416,2]
[367330450,1750752662530,-2000.0,0.00021416,2]
[367330451,1750752662541,-2000.0,0.00021416,2]
[367330452,1750752662550,-418.0,0.00021422,2]
[367330453,1750752662560,-3157.93331803,0.00021452,5]
[367330454,1750752662570,-183.6961498,0.00021479,2]
[367330455,1750752662580,-158.661874,0.00021479,2]
[367330456,1750752662589,-159.1692736,0.00021479,2]
[367330457,1750752662599,-574.8597778,0.00021479,2]
[367330458,1750752662609,-153.0,0.00021479,2]
[367330459,1750752662620,-159.1692736,0.00021479,2]
[367330460,1750752662629,-153.0,0.00021479,2]
[367330461,1750752662639,-153.0,0.00021479,2]
[367330462,1750752662649,-574.8597778,0.00021479,2]
[367330463,1750752662658,-177.3826656,0.00021479,2]
[367330464,1750752662669,-153.0,0.00021479,2]
[367330465,1750752662680,-177.3826656,0.00021479,2]
[367330466,1750752662690,-159.1692736,0.00021479,2]
[367330467,1750752662700,-574.8597778,0.00021479,2]
[367330468,1750752662710,-153.0,0.00021479,2]
[367330469,1750752662720,-177.3826656,0.00021479,2]
[367330470,1750752662729,-159.1692736,0.00021479,2]
[367330471,1750752662740,-574.8597778,0.00021479,2]
[367330472,1750752662750,-159.1692736,0.00021479,2]
[367330473,1750752662760,-306.0,0.00021479,2]
[367330474,1750752662770,-574.8597778,0.00021479,2]
[367330475,1750752662779,-177.3826656,0.00021479,2]
[367330476,1750752662790,-320.0826233,0.00021479,2]
[367330477,1750752662802,-919.8150083,0.00021479,2]
[367330478,1750752662811,-153.0,0.00021479,2]
[367330479,1750752662820,-153.0,0.00021479,2]
[367330480,1750752662831,-153.0,0.00021479,2]
[367330481,1750752662840,-153.0,0.00021479,2]
[367330482,1750752662849,-153.0,0.00021479,2]
[367330483,1750752662858,-306.0,0.00021479,2]
[367330484,1750752662870,-297.2602302,0.00021479,2]
[367330485,1750752662880,-183.879334,0.00021479,2]
[367330486,1750752662889,-153.0,0.00021479,2]
[367330487,1750752662900,-206.0,0.0002148,2]
[367330488,1750752662911,-2962.933333,0.00021499,2]
[367330489,1750752662921,-6750.25,0.000215,2]
[367330490,1750752662931,-12520.14,0.000215,2]
[367330491,1750752662941,-151.0,0.000215,2]
[367330492,1750752662953,-151.0,0.000215,2]
[367330493,1750752662964,-151.0,0.000215,2]
[367330494,1750752662975,-301.400948,0.000215,2]
[367330495,1750752662984,-168.0,0.00021515,2]
[367330496,1750752662994,-168.0,0.00021553,2]
[367330497,1750752663003,-418.0,0.00021557,2]
[367330498,1750752663012,-91520.35,0.000216,2]
[367330499,1750752663022,-278.517668,0.000216,2]
[367330500,1750752663032,-151.0,0.000216,2]
[367330501,1750752663041,-151.0,0.000216,2]
[367330502,1750752663051,-151.0,0.000216,2]
[367330503,1750752663060,-153.690437,0.000216,2]
[367330504,1750752663070,-151.0,0.000216,2]
[367330505,1750752663079,-151.0,0.000216,2]
[367330506,1750752663089,-151.0,0.000216,2]
[367330507,1750752663098,-151.0,0.000216,2]
[367330508,1750752663108,-2000.0,0.00021616,2]
[367330509,1750752663118,-2000.0,0.00021616,2]
[367330510,1750752663127,-1114.18597854,0.00021616,2]
[367330511,1750752663136,-2000.0,0.00021616,2]
[367330512,1750752663145,-3157.93331803,0.00021624,5]
[367330513,1750752663154,-2048.59,0.00021629,2]
[367330514,1750752663164,-151.0,0.00021629,2]
[367330515,1750752663173,-301.50423,0.00021629,2]
[367330516,1750752663182,-301.50423,0.00021629,2]
[367330517,1750752663192,-1262.406565,0.00021629,2]
[367330518,1750752663201,-1262.406565,0.00021629,2]
[367330519,1750752663211,-588.0,0.00021634,2]
[367330520,1750752663219,-2200.0,0.00021638,2]
[367330521,1750752663229,-800.603,0.00021638,2]
[367330522,1750752663239,-151.0,0.00021643,2]
[367330523,1750752663248,-151.0,0.00021643,2]
[367330524,1750752663258,-151.000001,0.00021643,2]
[367330525,1750752663267,-151.0,0.00021643,2]
[367330526,1750752663276,-151.0,0.00021643,2]
[367330527,1750752663285,-757.17,0.00021643,18]
[367330528,1750752663295,-460.0,0.00021643,2]
[367330529,1750752663304,-460.0,0.00021643,2]
[367330530,1750752663314,-673.94,0.00021643,2]
[367330531,1750752663324,-1047.12,0.00021643,2]
[367330532,1750752663333,-487.01,0.00021643,2]
[367330533,1750752663343,-460.0,0.00021643,2]
[367330534,1750752663352,-615.97,0.00021643,2]
[367330535,1750752663361,-492.32,0.00021643,2]
[367330536,1750752663371,-460.0,0.00021643,2]
[367330537,1750752663380,-460.0,0.00021643,2]
[367330538,1750752663390,-460.0,0.00021643,2]
[367330539,1750752663399,-714.5,0.00021643,2]
[367330540,1750752663409,-460.0,0.00021643,2]
[367330541,1750752663419,-460.0,0.00021643,2]
[367330542,1750752663428,-523.43,0.00021643,2]
[367330543,1750752663438,-460.0,0.00021643,2]
[367330544,1750752663448,-503.09,0.00021643,2]
[367330545,1750752663457,-460.0,0.00021643,2]
[367330546,1750752663467,-460.0,0.00021643,2]
[367330547,1750752663476,-460.0,0.00021643,2]
[367330548,1750752663486,-460.0,0.00021643,2]
[367330549,1750752663496,-1026.56,0.00021643,2]
[367330550,1750752663506,-821.9,0.00021643,2]
[367330551,1750752663515,-460.0,0.00021643,2]
[367330552,1750752663524,-460.0,0.00021643,2]
[367330553,1750752663534,-896.28,0.00021643,2]
[367330554,1750752663543,-1097.0,0.00021643,2]
[367330555,1750752663552,-896.27,0.00021643,2]
[367330556,1750752663562,-3446.55,0.00021643,2]
[367330557,1750752663571,-999.41,0.00021643,2]
[367330558,1750752663581,-460.0,0.00021643,2]
[367330559,1750752663590,-460.0,0.00021643,2]
[367330560,1750752663600,-460.0,0.00021643,2]
[367330561,1750752663610,-1312.15,0.00021643,2]
[367330562,1750752663621,-2713.65,0.00021643,2]
[367330563,1750752663631,-183.963104,0.00021643,2]
[367330564,1750752663642,-3355.8,0.00021643,2]
[367330565,1750752663651,-3734.84,0.00021643,2]
[367330566,1750752663661,-1361.0,0.00021643,2]
[367330567,1750752663671,-183.963104,0.00021643,2]
[367330568,1750752663680,-1116.13,0.00021643,2]
[367330569,1750752663690,-1182.98,0.00021643,2]
[367330570,1750752663701,-460.0,0.00021643,2]
[367330571,1750752663710,-937.65,0.00021643,2]
[367330572,1750752663720,-460.0,0.00021643,2]
[367330573,1750752663730,-172.7312,0.00021643,2]
[367330574,1750752663739,-460.0,0.00021643,2]
[367330575,1750752663748,-547.64,0.00021643,2]
[367330576,1750752663758,-460.0,0.00021643,2]
[367330577,1750752663768,-460.0,0.00021643,2]
[367330578,1750752663779,-607.76274235,0.00021643,2]
[367330579,1750752663792,-460.0,0.00021643,2]
[367330580,1750752663803,-1806.17,0.00021643,2]
[367330581,1750752663812,-3172.77,0.00021643,2]
[367330582,1750752663822,-460.0,0.00021643,2]
[367330583,1750752663832,-4070.75,0.00021643,2]
[367330584,1750752663842,-460.0,0.00021643,2]
[367330585,1750752663852,-1139.13,0.00021643,2]
[367330586,1750752663863,-460.0,0.00021643,2]
[367330587,1750752663875,-460.0,0.00021643,2]
[367330588,1750752663884,-802.34,0.00021643,2]
[367330589,1750752663894,-2208.12,0.00021643,2]
[367330590,1750752663904,-513.68,0.00021643,2]
[367330591,1750752663913,-2572.64,0.00021643,2]
[367330592,1750752663924,-460.0,0.00021643,2]
[367330593,1750752663933,-460.0,0.00021643,2]
[367330594,1750752663943,-593.83,0.00021643,2]
[367330595,1750752663952,-584.89,0.00021643,2]
[367330596,1750752663962,-540.21,0.00021643,2]
[367330597,1750752663972,-4273.48,0.00021643,2]
[367330598,1750752663982,-946.13,0.00021643,2]
[367330599,1750752663992,-460.0,0.00021643,2]
[367330600,1750752664001,-460.0,0.00021643,2]
[367330601,1750752664011,-3042.66,0.00021643,2]
[367330602,1750752664021,-470.14,0.00021643,2]
[367330603,1750752664030,-7145.98,0.00021643,2]
[367330604,1750752664040,-460.0,0.00021643,2]
[367330605,1750752664051,-1474.54,0.00021643,2]
[367330606,1750752664143,-926.066891,0.00021643,2]
[367330607,1750752664153,-460.0,0.00021643,2]
[367330608,1750752664162,-460.0,0.00021643,2]
[367330609,1750752664174,-926.066891,0.00021643,2]
[367330610,1750752664184,-460.0,0.00021643,2]
[367330611,1750752664196,-460.0,0.00021643,2]
[367330612,1750752664206,-1898.18,0.00021643,2]
[367330613,1750752664217,-3559.0,0.00021643,2]
[367330614,1750752664226,-1037.04,0.00021643,2]
[367330615,1750752664236,-3447.67,0.00021643,2]
[367330616,1750752664246,-853.1,0.00021643,2]
[367330617,1750752664256,-460.0,0.00021643,2]
[367330618,1750752664266,-1275.83,0.00021643,2]
[367330619,1750752664275,-460.0,0.00021643,2]
[367330620,1750752664284,-460.0,0.00021643,2]
[367330621,1750752664294,-151.0,0.00021643,2]
[367330622,1750752664303,-1267.62,0.00021643,2]
[367330623,1750752664312,-1171.59,0.00021643,2]
[367330624,1750752664322,-579.17925412,0.00021643,2]
[367330625,1750752664331,-823.8,0.00021643,2]
[367330626,1750752664340,-1500.0,0.00021668,2]
[367330627,1750752664350,-1500.0,0.00021668,2]
[367330628,1750752664359,-1500.0,0.00021668,2]
[367330629,1750752664368,-520.6698495,0.00021668,2]
[367330630,1750752664377,-1500.0,0.00021668,2]
[367330631,1750752664386,-507.64360232,0.00021668,2]
[367330632,1750752664395,-1500.0,0.00021668,2]
[367330633,1750752664404,-1332.9414588,0.00021668,2]
[367330634,1750752664414,-1500.0,0.00021668,2]
[367330635,1750752664423,-1500.0,0.00021668,2]
[367330636,1750752664433,-1500.0,0.00021668,2]
[367330637,1750752664442,-1001.25716304,0.00021668,2]
[367330638,1750752664452,-1500.0,0.00021668,2]
[367330639,1750752664462,-1500.0,0.00021668,2]
[367330640,1750752664472,-504.62879172,0.00021668,2]
[367330641,1750752664482,-544.55609618,0.00021668,2]
[367330642,1750752664492,-1500.0,0.00021668,2]
[367330643,1750752664502,-1500.0,0.00021668,2]
[367330644,1750752664512,-1500.0,0.00021668,2]
[367330645,1750752664521,-1248.58789965,0.00021668,2]
[367330646,1750752664531,-1500.0,0.00021668,2]
[367330647,1750752664540,-1500.0,0.00021668,2]
[367330648,1750752664549,-1500.0,0.00021668,2]
[367330649,1750752664560,-1500.0,0.00021668,2]
[367330650,1750752664570,-1500.0,0.00021668,2]
[367330651,1750752664582,-501.08056943,0.00021668,2]
[367330652,1750752664592,-1500.0,0.00021668,2]
[367330653,1750752664602,-1500.0,0.00021668,2]
[367330654,1750752664611,-1800.0,0.00021668,2]
[367330655,1750752664621,-2000.0,0.00021713,2]
[367330656,1750752664631,-2000.0,0.00021713,2]
[367330657,1750752664640,-418.0,0.00021746,2]
[367330658,1750752664650,-15556.08973976,0.00021772,2]
[367330659,1750752664659,-887.2475225,0.00021773,2]
[367330660,1750752664669,-647.2,0.00021782,4]
[367330661,1750752664678,-8596.68652395,0.00021792,2]
[367330662,1750752664688,-3157.93331803,0.00021797,6]
[367330663,1750752664698,-57475.99846275,0.000218,5]
[367330664,1750752665578,-0.303815,0.00019115,2]
[367330665,1750752666403,-499.696185,0.00019115,2]
[367330666,1750752666414,-500.0,0.00019115,2]
[367330667,1750752666424,-194.52131379,0.00019115,2]
[367330668,1750752666436,-305.47868621,0.00019115,2]
[367330669,1750752666447,-500.0,0.00019115,2]
[367330670,1750752666459,-500.0,0.00019115,2]
[367330671,1750752666470,-500.0,0.00019115,2]
[367330672,1750752666479,-209.50736831,0.00019115,2]
[367330673,1750752666491,-500.0,0.00019115,2]
[367330674,1750752666500,-500.0,0.00019115,2]
[367330675,1750752666510,-500.0,0.00019115,2]
[367330676,1750752666520,-403.56445157,0.00019115,2]
[367330677,1750752666529,-500.0,0.00019115,2]
[367330678,1750752666539,-500.0,0.00019115,2]
[367330679,1750752666548,-560.0951301,0.00019115,2]
[367330680,1750752666557,-500.0,0.00019115,2]
[367330681,1750752666568,-500.0,0.00019115,2]
[367330682,1750752666578,-500.0,0.00019115,2]
[367330683,1750752666587,-500.0,0.00019115,2]
[367330684,1750752666596,-500.0,0.00019115,2]
[367330685,1750752666606,-500.0,0.00019115,2]
[367330686,1750752666616,-500.0,0.00019115,2]
[367330687,1750752666626,-500.0,0.00019115,2]
[367330688,1750752666636,-500.0,0.00019115,2]
[367330689,1750752666646,-500.0,0.00019115,2]
[367330690,1750752666655,-500.0,0.00019115,2]
[367330691,1750752666665,-500.0,0.00019115,2]
[367330692,1750752666674,-500.0,0.00019115,2]
[367330693,1750752666684,-500.0,0.00019115,2]
[367330694,1750752666693,-500.0,0.00019115,2]
[367330695,1750752666703,-500.0,0.00019115,2]
[367330696,1750752666712,-500.0,0.00019115,2]
[367330697,1750752666721,-500.0,0.00019115,2]
[367330698,1750752666730,-500.0,0.00019115,2]
[367330699,1750752666739,-500.0,0.00019115,2]
[367330700,1750752666749,-500.0,0.00019115,2]
[367330701,1750752666836,-500.0,0.00019115,2]
[367330702,1750752666847,-500.0,0.00019115,2]
[367330703,1750752666857,-500.0,0.00019115,2]
[367330704,1750752666866,-628.71615879,0.00019115,2]
[367330705,1750752666876,-500.0,0.00019115,2]
[367330706,1750752666887,-500.0,0.00019115,2]
[367330707,1750752666897,-500.0,0.00019115,2]
[367330708,1750752666906,-500.0,0.00019115,2]
[367330709,1750752666915,-500.0,0.00019115,2]
[367330710,1750752666925,-500.0,0.00019115,2]
[367330711,1750752666934,-617.92910279,0.00019115,2]
[367330712,1750752666943,-500.0,0.00019115,2]
[367330713,1750752666953,-500.0,0.00019115,2]
[367330714,1750752666962,-500.0,0.00019115,2]
[367330715,1750752666972,-500.0,0.00019115,2]
[367330716,1750752666981,-500.0,0.00019115,2]
[367330717,1750752666991,-500.0,0.00019115,2]
[367330718,1750752667001,-500.0,0.00019115,2]
[367330719,1750752667010,-500.0,0.00019115,2]
[367330720,1750752667019,-500.0,0.00019115,2]
[367330721,1750752667028,-500.0,0.00019115,2]
[367330722,1750752667037,-500.0,0.00019115,2]
[367330723,1750752667046,-500.0,0.00019115,2]
[367330724,1750752667056,-500.0,0.00019115,2]
[367330725,1750752667066,-500.0,0.00019115,2]
[367330726,1750752667075,-500.0,0.00019115,2]
[367330727,1750752667085,-500.0,0.00019115,2]
[367330728,1750752667094,-500.0,0.00019115,2]
[367330729,1750752667103,-500.0,0.00019115,2]
[367330730,1750752667113,-500.0,0.00019115,2]
[367330731,1750752667123,-500.0,0.00019115,2]
[367330732,1750752667132,-500.0,0.00019115,2]
[367330733,1750752667141,-500.0,0.00019115,2]
[367330734,1750752667151,-500.0,0.00019115,2]
[367330735,1750752667160,-500.0,0.00019115,2]
[367330736,1750752667169,-500.0,0.00019115,2]
[367330737,1750752667178,-500.0,0.00019115,2]
[367330738,1750752667188,-500.0,0.00019115,2]
[367330739,1750752667198,-439.62221938,0.00019115,2]
[367330740,1750752667207,-500.0,0.00019115,2]
[367330741,1750752667218,-500.0,0.00019115,2]
[367330742,1750752667227,-500.0,0.00019115,2]
[367330743,1750752667238,-500.0,0.00019115,2]
[367330744,1750752667247,-500.0,0.00019115,2]
[367330745,1750752667257,-500.0,0.00019115,2]
[367330746,1750752667266,-500.0,0.00019115,2]
[367330747,1750752667275,-500.0,0.00019115,2]
[367330748,1750752667284,-500.0,0.00019115,2]
[367330749,1750752667293,-500.0,0.00019115,2]
[367330750,1750752667302,-500.0,0.00019115,2]
[367330751,1750752667311,-500.0,0.00019115,2]
[367330752,1750752667321,-500.0,0.00019115,2]
[367330753,1750752667330,-500.0,0.00019115,2]
[367330754,1750752667340,-500.0,0.00019115,2]
[367330755,1750752667349,-500.0,0.00019115,2]
[367330756,1750752667359,-500.0,0.00019115,2]
[367330757,1750752667369,-500.0,0.00019115,2]
[367330758,1750752667378,-460.0,0.00019178,2]
[367330759,1750752667387,-460.0,0.00019178,2]
[367330760,1750752667397,-460.0,0.00019452,2]
[367330761,1750752667406,-460.0,0.00019452,2]
[367330762,1750752667416,-460.0,0.00019726,2]
[367330763,1750752667425,-460.0,0.0002,2]
[367330764,1750752667434,-160.0,0.000203,3]
[367330765,1750752667445,-1403.33,0.00020547,2]
[367330766,1750752667454,-1521.89,0.00020547,2]
[367330767,1750752667464,-160.0,0.0002068,7]
[367330768,1750752667473,-1403.33,0.00020821,2]